bitfinex-derivatives/quotes_BTCF0:USTF0_20241025
["timestamp","ask_amount","ask_price","bid_price","bid_amount"]
[1729884036223,0.075023,66785.0,66764.0,0.44932]
[1729884036518,0.30013559,66782.0,66774.0,0.3608]
[1729884036716,0.37516959,66775.0,66774.0,0.3608]
[1729884037111,0.075046,66764.0,66763.0,0.3608]
[1729884037415,0.075046,66764.0,66763.0,0.7216]
[1729884038414,0.30013559,66782.0,66763.0,0.7216]
[1729884038415,0.075043,66767.0,66763.0,0.7216]
[1729884039016,0.075043,66767.0,66763.0,1.17092]
[1729884039213,0.2199,66793.0,66764.0,0.44932]
[1729884039415,0.075019,66785.0,66784.0,0.3608]
[1729884040620,0.08767675,66785.0,66784.0,0.3608]
[1729884041221,0.01265775,66785.0,66784.0,0.3608]
[1729884041522,0.075014,66789.0,66784.0,0.3608]
[1729884041820,0.37513659,66801.0,66785.0,0.3608]
[1729884041821,0.075018,66786.0,66785.0,0.3608]
[1729884042213,0.075018,66786.0,66785.0,0.24071131]
[1729884043926,0.08779499,66786.0,66785.0,0.24071131]
[1729884045714,0.01277699,66786.0,66785.0,0.24071131]
[1729884045918,0.075017,66786.0,66785.0,0.24071131]
[1729884046117,0.086987,66786.0,66785.0,0.24071131]
[1729884048227,0.075032,66775.0,66774.0,0.3608]
[1729884048621,0.11173412,66775.0,66774.0,0.3608]
[1729884049115,0.075032,66775.0,66774.0,0.3608]
[1729884049327,0.11171012,66775.0,66774.0,0.3608]
[1729884050115,0.075032,66775.0,66774.0,0.3608]
[1729884051723,0.37516759,66775.0,66774.0,0.3608]
[1729884052520,0.075032,66775.0,66774.0,0.3608]
[1729884056822,0.26966923,66775.0,66774.0,0.3608]
[1729884057928,0.075032,66775.0,66774.0,0.3608]
[1729884060239,0.184121,66785.0,66774.0,0.3608]
[1729884060240,0.1091,66785.0,66774.0,0.3608]
[1729884060454,0.1091,66785.0,66759.0,0.3608]
[1729884060455,0.075049,66760.0,66759.0,0.3608]
[1729884060627,0.19463723,66760.0,66751.0,0.3608]
[1729884060831,0.7216,66765.0,66740.0,0.85]
[1729884060832,0.07507,66741.0,66740.0,0.85]
[1729884061131,0.07507,66741.0,66739.0,0.3608]
[1729884061132,0.075071,66740.0,66739.0,0.3608]
[1729884061540,0.075071,66740.0,66739.0,1.2108]
[1729884062232,0.3608,66747.0,66739.0,1.2108]
[1729884062429,0.19463723,66741.0,66740.0,0.075072]
[1729884062639,0.19463723,66744.0,66740.0,0.075072]
[1729884062844,0.075072,66740.0,66739.0,1.2108]
[1729884064247,0.075086,66728.0,66727.0,0.435886]
[1729884064542,0.26972323,66728.0,66727.0,0.3608]
[1729884064736,0.26972323,66728.0,66727.0,0.37125866]
[1729884065539,0.075086,66728.0,66727.0,0.37125866]
[1729884066534,0.435871,66741.0,66735.0,0.075076]
[1729884066734,0.075072,66740.0,66733.0,0.19463723]
[1729884066943,0.3608,66741.0,66735.0,0.435877]
[1729884066944,0.075073,66739.0,66735.0,0.435877]
[1729884067243,0.3608,66747.0,66738.0,0.19463723]
[1729884067539,0.3608,66747.0,66736.0,0.44952]
[1729884067540,0.075064,66747.0,66741.0,0.07507]
[1729884067737,0.3608,66752.0,66746.0,0.075065]
[1729884068647,0.3608,66752.0,66741.0,0.3608]
[1729884068845,0.3608,66752.0,66742.0,0.19463723]
[1729884069142,0.075055,66755.0,66750.0,0.07506]
[1729884069839,0.36288001,66760.0,66754.0,0.075056]
[1729884069840,0.075051,66759.0,66754.0,0.075056]
[1729884070041,0.075052,66758.0,66754.0,0.075056]
[1729884070245,0.075052,66758.0,66755.0,0.85]
[1729884070839,0.075052,66758.0,66754.0,0.075055]
[1729884071041,0.075053,66757.0,66754.0,0.075055]
[1729884071343,0.075055,66755.0,66754.0,0.85]
[1729884071544,0.075063,66748.0,66747.0,0.3608]
[1729884071734,0.7216,66760.0,66740.0,0.3608]
[1729884071735,0.19463723,66749.0,66740.0,0.3608]
[1729884071940,0.19463723,66742.0,66734.0,0.435878]
[1729884072139,0.19463723,66742.0,66741.0,0.3608]
[1729884072140,0.26970723,66742.0,66741.0,0.3608]
[1729884072342,0.00208001,66758.0,66741.0,1.15543723]
[1729884072650,0.07505,66760.0,66757.0,0.075052]
[1729884073042,0.075052,66758.0,66753.0,0.075057]
[1729884073243,0.3608,66765.0,66752.0,0.3608]
[1729884073449,0.075046,66763.0,66752.0,0.37116762]
[1729884073748,0.3608,66765.0,66764.0,0.075045]
[1729884073945,0.1068,66768.0,66760.0,0.075049]
[1729884074251,0.075045,66764.0,66760.0,0.075049]
[1729884074442,0.1068,66768.0,66759.0,0.3608]
[1729884074643,0.075046,66763.0,66759.0,0.3608]
[1729884074944,0.075062,66749.0,66748.0,0.075063]
[1729884075351,0.075055,66755.0,66747.0,0.0022471]
[1729884075649,0.075063,66748.0,66747.0,0.0022471]
[1729884077046,0.3608,66756.0,66747.0,0.0022471]
[1729884077249,0.3608,66756.0,66753.0,0.19463723]
[1729884077449,0.3608,66756.0,66755.0,0.075055]
[1729884077753,0.1068,66768.0,66755.0,0.85]
[1729884077955,0.1068,66768.0,66760.0,0.075049]
[1729884078252,0.075048,66761.0,66760.0,0.075049]
[1729884078442,0.3608,66761.0,66747.0,0.0022471]
[1729884078640,0.26970023,66748.0,66729.0,0.3608]
[1729884078847,0.075074,66738.0,66735.0,0.075077]
[1729884079861,0.10878001,66747.0,66736.0,0.19463723]
[1729884080044,0.075066,66745.0,66742.0,0.075069]
[1729884080650,0.1067,66747.0,66742.0,0.075068]
[1729884080855,0.181765,66747.0,66743.0,0.075068]
[1729884081058,0.075066,66746.0,66743.0,0.075068]
[1729884081246,0.075066,66746.0,66744.0,0.075066]
[1729884082750,0.075059,66752.0,66750.0,0.07506]
[1729884082956,0.3608,66755.0,66748.0,0.19463723]
[1729884083256,0.075057,66754.0,66753.0,0.075057]
[1729884083851,0.075051,66759.0,66755.0,0.075054]
[1729884084053,0.3608,66771.0,66765.0,0.075044]
[1729884084054,0.075043,66766.0,66765.0,0.075044]
[1729884084253,0.075043,66766.0,66758.0,0.19463723]
[1729884084254,0.1073,66774.0,66764.0,0.19463723]
[1729884084459,0.3608,66775.0,66773.0,0.075034]
[1729884084649,0.435833,66775.0,66773.0,0.063054]
[1729884084954,0.435833,66775.0,66771.0,0.19463723]
[1729884084955,0.435833,66775.0,66774.0,0.075034]
[1729884085150,0.435833,66775.0,66771.0,0.19463723]
[1729884085151,0.1085,66781.0,66771.0,0.19463723]
[1729884085350,0.183526,66781.0,66780.0,0.075027]
[1729884085753,0.3608,66783.0,66782.0,0.075024]
[1729884086063,0.3608,66790.0,66789.0,0.075016]
[1729884086254,0.3608,66790.0,66789.0,0.26965323]
[1729884086452,0.3608,66799.0,66789.0,0.19463723]
[1729884086654,0.3608,66799.0,66794.0,0.07501]
[1729884086962,0.075008,66797.0,66794.0,0.07501]
[1729884087157,0.3608,66799.0,66789.0,0.19463723]
[1729884087464,0.074999,66805.0,66801.0,0.075002]
[1729884087654,0.074995,66809.0,66805.0,0.074998]
[1729884088864,0.3608,66812.0,66806.0,0.074997]
[1729884089063,0.3608,66812.0,66804.0,0.3608]
[1729884089259,0.074998,66805.0,66804.0,0.3608]
[1729884089851,0.074993,66810.0,66806.0,0.074997]
[1729884090166,0.3608,66812.0,66804.0,0.3608]
[1729884090350,0.074998,66805.0,66804.0,0.3608]
[1729884090861,0.074998,66805.0,66804.0,1.2108]
[1729884091564,0.19463723,66807.0,66797.0,0.3608]
[1729884091864,0.075005,66799.0,66797.0,0.435807]
[1729884092058,0.074998,66805.0,66800.0,0.075003]
[1729884092255,0.4688,66819.0,66803.0,0.55543723]
[1729884092463,0.074989,66814.0,66810.0,0.3608]
[1729884092663,0.108,66819.0,66810.0,0.3608]
[1729884092854,0.074983,66818.0,66810.0,0.3608]
[1729884093158,0.074991,66811.0,66810.0,0.3608]
[1729884093359,0.074985,66817.0,66814.0,0.074988]
[1729884093551,0.074985,66817.0,66810.0,0.3608]
[1729884093552,0.074976,66825.0,66819.0,0.074982]
[1729884093751,0.07497,66831.0,66824.0,0.26961323]
[1729884093955,0.3608,66832.0,66824.0,0.26961323]
[1729884093956,0.074974,66827.0,66824.0,0.19463723]
[1729884094160,0.074974,66827.0,66824.0,1.04463723]
[1729884094755,0.3608,66832.0,66826.0,0.074974]
[1729884094957,0.3608,66832.0,66824.0,1.04463723]
[1729884095160,0.3608,66832.0,66829.0,0.07497]
[1729884095761,0.3608,66832.0,66824.0,1.04463723]
[1729884096063,0.07496,66839.0,66830.0,0.19463723]
[1729884096265,0.07496,66839.0,66835.0,0.19463723]
[1729884096870,0.074964,66836.0,66834.0,0.3608]
[1729884097068,0.074971,66829.0,66828.0,0.3608]
[1729884097460,0.074975,66826.0,66824.0,0.85]
[1729884097663,0.074979,66822.0,66821.0,0.00224474]
[1729884099070,0.435779,66822.0,66821.0,0.00224474]
[1729884099674,0.074979,66822.0,66821.0,0.00224474]
[1729884100974,0.626939,66822.0,66821.0,0.00224474]
[1729884101164,0.638909,66822.0,66802.0,0.3608]
[1729884101361,0.074994,66811.0,66805.0,0.075]
[1729884101569,0.074996,66810.0,66805.0,0.075]
[1729884101873,0.19463723,66814.0,66805.0,0.075]
[1729884102167,0.19463723,66820.0,66805.0,0.075]
[1729884102473,0.3608,66814.0,66805.0,0.075]
[1729884103076,0.3608,66814.0,66806.0,0.19463723]
[1729884103267,0.3608,66814.0,66809.0,0.074995]
[1729884103571,0.074995,66810.0,66805.0,0.075]
[1729884103766,0.074995,66810.0,66802.0,0.3608]
[1729884103966,0.074995,66810.0,66806.0,0.074999]
[1729884104466,0.075,66806.0,66802.0,0.435804]
[1729884104769,0.075,66806.0,66805.0,0.075001]
[1729884105085,0.074994,66811.0,66806.0,0.074999]
[1729884105374,0.074998,66808.0,66806.0,0.074999]
[1729884105674,0.075,66806.0,66803.0,0.075002]
[1729884106173,0.075003,66803.0,66802.0,0.3608]
[1729884106475,0.075003,66803.0,66798.0,0.86024949]
[1729884106476,0.075003,66803.0,66798.0,0.85]
[1729884106865,0.075006,66800.0,66798.0,0.85]
[1729884107565,0.075007,66799.0,66798.0,0.85]
[1729884107774,0.075009,66797.0,66796.0,0.00224569]
[1729884108275,0.075009,66797.0,66796.0,0.85224569]
[1729884109373,0.3608,66806.0,66796.0,1.21304569]
[1729884109582,0.075003,66803.0,66802.0,0.55543723]
[1729884109876,0.3608,66814.0,66807.0,0.074998]
[1729884109877,0.074997,66809.0,66807.0,0.074998]
[1729884110270,0.11497,66822.0,66808.0,0.3608]
[1729884110468,0.074991,66814.0,66809.0,0.074995]
[1729884110675,0.074992,66813.0,66809.0,0.074995]
[1729884110973,0.074985,66819.0,66808.0,0.3608]
[1729884111175,0.01197,66822.0,66817.0,0.074987]
[1729884111368,0.086952,66822.0,66817.0,0.074987]
[1729884112089,0.3608,66820.0,66812.0,0.19463723]
[1729884112385,0.01197,66822.0,66802.0,0.075004]
[1729884112386,0.074999,66807.0,66802.0,0.075004]
[1729884112586,0.075,66806.0,66802.0,0.075004]
[1729884113079,0.55751724,66813.0,66800.0,0.3608]
[1729884113269,0.075,66806.0,66800.0,0.3608]
[1729884113466,0.075001,66805.0,66800.0,0.435806]
[1729884113680,0.3608,66807.0,66800.0,0.435806]
[1729884114071,0.435793,66812.0,66800.0,0.435806]
[1729884114267,0.55543723,66819.0,66807.0,0.3608]
[1729884114471,0.074993,66812.0,66809.0,0.074996]
[1729884114677,0.3608,66819.0,66807.0,0.3608]
[1729884114871,0.074989,66816.0,66815.0,0.07499]
[1729884116180,0.074984,66820.0,66817.0,0.074987]
[1729884116678,0.074986,66819.0,66817.0,0.074987]
[1729884116881,0.074986,66819.0,66818.0,0.85]
[1729884117675,0.01197,66822.0,66821.0,0.074983]
[1729884117875,0.1134,66854.0,66825.0,0.3608]
[1729884118178,0.1134,66854.0,66846.0,0.074954]
[1729884118179,0.074949,66851.0,66846.0,0.074954]
[1729884118483,0.074949,66851.0,66847.0,0.85]
[1729884118687,0.1134,66854.0,66847.0,0.85]
[1729884118983,0.1134,66854.0,66846.0,0.074954]
[1729884118984,0.074948,66852.0,66846.0,0.074954]
[1729884119686,0.074948,66852.0,66847.0,0.85]
[1729884120279,0.1134,66854.0,66851.0,0.3608]
[1729884120488,0.074948,66853.0,66851.0,0.3608]
[1729884120979,0.1134,66854.0,66851.0,0.3608]
[1729884121183,0.19463723,66852.0,66838.0,0.3608]
[1729884121393,0.80956,66853.0,66841.0,0.19463723]
[1729884121394,0.00208001,66853.0,66841.0,0.19463723]
[1729884121575,0.188347,66854.0,66851.0,0.074949]
[1729884122382,0.1134,66854.0,66846.0,0.19463723]
[1729884122681,0.36288001,66859.0,66858.0,0.074942]
[1729884122874,0.3608,66859.0,66858.0,0.074942]
[1729884123384,0.3608,66868.0,66852.0,0.19463723]
[1729884123680,0.074936,66863.0,66860.0,0.074939]
[1729884123887,0.074938,66862.0,66860.0,0.074939]
[1729884124072,0.074938,66862.0,66850.0,0.3608]
[1729884124073,0.3608,66875.0,66850.0,0.3608]
[1729884124074,0.3608,66893.0,66873.0,0.0549]
[1729884124275,0.3608,66893.0,66861.0,0.8848842]
[1729884124276,0.074907,66889.0,66883.0,0.074914]
[1729884124488,0.074907,66889.0,66882.0,0.19463723]
[1729884124489,0.3608,66889.0,66882.0,0.19463723]
[1729884124684,0.3608,66889.0,66876.0,0.074922]
[1729884124685,0.074912,66885.0,66876.0,0.074922]
[1729884124987,0.3608,66883.0,66867.0,0.0022434]
[1729884125177,0.19463723,66885.0,66871.0,0.435727]
[1729884125178,0.074922,66876.0,66871.0,0.435727]
[1729884125377,0.07492,66878.0,66872.0,0.074925]
[1729884125578,0.074921,66877.0,66872.0,0.074925]
[1729884126079,0.3608,66881.0,66877.0,0.07492]
[1729884126278,0.3608,66881.0,66871.0,0.3608]
[1729884126789,0.074917,66880.0,66874.0,0.074924]
[1729884127283,0.3608,66881.0,66869.0,0.19463723]
[1729884127489,0.3608,66872.0,66867.0,0.0022434]
[1729884127875,0.074928,66871.0,66867.0,0.0022434]
[1729884128579,0.074928,66871.0,66866.0,0.074933]
[1729884129486,0.07493,66869.0,66863.0,0.3608]
[1729884129891,0.3608,66872.0,66864.0,0.19463723]
[1729884130189,0.3608,66872.0,66866.0,0.074933]
[1729884130391,0.3608,66872.0,66867.0,0.074932]
[1729884130690,0.3608,66872.0,66864.0,0.19463723]
[1729884130691,0.3608,66872.0,66868.0,0.074931]
[1729884131886,0.074926,66873.0,66868.0,0.074931]
[1729884132292,0.074926,66873.0,66869.0,0.07493]
[1729884132683,0.074926,66873.0,66869.0,0.26956723]
[1729884132987,0.3608,66875.0,66863.0,1.2108]
[1729884132988,0.074935,66865.0,66863.0,0.3608]
[1729884133289,0.3608,66868.0,66852.0,0.55768084]
[1729884133492,0.3608,66868.0,66852.0,0.26304361]
[1729884133493,0.074947,66855.0,66852.0,0.26304361]
[1729884133688,0.074947,66855.0,66852.0,0.33799261]
[1729884133995,0.074948,66853.0,66852.0,0.26304361]
[1729884134477,0.074943,66858.0,66852.0,0.45768084]
[1729884134683,0.3608,66884.0,66881.0,0.074916]
[1729884134981,0.3608,66884.0,66883.0,0.26955123]
[1729884135390,0.3608,66884.0,66883.0,1.11955123]
[1729884135892,0.3608,66897.0,66883.0,1.04463723]
[1729884136080,0.074904,66891.0,66885.0,0.074909]
[1729884136279,0.3608,66897.0,66891.0,0.074903]
[1729884136495,0.074894,66899.0,66889.0,0.19463723]
[1729884136787,0.074894,66899.0,66884.0,0.3608]
[1729884136788,0.074893,66900.0,66884.0,0.55543723]
[1729884136986,0.1129,66901.0,66884.0,0.3608]
[1729884136987,0.3608,66894.0,66884.0,0.3608]
[1729884137187,0.19463723,66897.0,66884.0,0.3608]
[1729884137188,0.3608,66897.0,66884.0,0.3608]
[1729884137591,0.3608,66897.0,66884.0,0.435711]
[1729884137983,0.074906,66888.0,66884.0,0.435711]
[1729884138292,0.074907,66888.0,66884.0,0.3608]
[1729884138684,0.074907,66888.0,66884.0,0.435711]
[1729884139086,0.3608,66897.0,66887.0,0.074907]
[1729884139291,0.074902,66892.0,66890.0,0.19463723]
[1729884139592,0.19463723,66893.0,66884.0,0.3608]
[1729884139793,0.074909,66885.0,66884.0,0.3608]
[1729884143791,0.074945,66853.0,66849.0,0.074949]
[1729884144094,0.435745,66853.0,66840.0,0.1037]
[1729884144295,0.074965,66835.0,66834.0,0.00224453]
[1729884144592,0.074964,66837.0,66835.0,0.074965]
[1729884144986,0.074964,66836.0,66834.0,0.00224453]
[1729884145186,0.3608,66841.0,66834.0,0.00224453]
[1729884145392,0.07496,66840.0,66837.0,0.074962]
[1729884145695,0.074961,66839.0,66837.0,0.074962]
[1729884146092,0.435761,66839.0,66837.0,0.074962]
[1729884146591,0.074963,66838.0,66835.0,0.074965]
[1729884147093,0.074964,66836.0,66834.0,0.19688176]
[1729884147300,0.435765,66835.0,66834.0,0.00224453]
[1729884147994,0.3608,66835.0,66834.0,0.27184776]
[1729884148989,0.3608,66835.0,66834.0,0.07721053]
[1729884150491,0.435765,66835.0,66834.0,0.07721053]
[1729884150800,0.3608,66835.0,66834.0,0.07721053]
[1729884151094,0.01046516,66852.0,66846.0,0.074953]
[1729884151095,0.074951,66848.0,66846.0,0.074953]
[1729884151399,0.074965,66835.0,66834.0,0.00224453]
[1729884151588,0.435765,66835.0,66834.0,0.00224453]
[1729884151789,0.884645,66835.0,66834.0,0.00224453]
[1729884151997,1.484645,66835.0,66834.0,5.3e-07]
[1729884152506,0.884645,66835.0,66834.0,5.3e-07]
[1729884152697,0.3608,66835.0,66815.0,0.3608]
[1729884152994,0.3608,66821.0,66819.0,0.26961923]
[1729884153296,0.074975,66827.0,66823.0,0.074978]
[1729884154695,0.074976,66826.0,66824.0,0.074977]
[1729884155397,0.074976,66825.0,66824.0,0.074977]
[1729884156499,0.074978,66824.0,66823.0,0.074979]
[1729884157298,0.074978,66824.0,66821.0,0.07498]
[1729884157498,0.074978,66824.0,66815.0,0.3608]
[1729884157801,0.074978,66824.0,66823.0,0.074979]
[1729884158891,0.3608,66827.0,66823.0,0.074979]
[1729884159193,0.3608,66835.0,66825.0,0.19463723]
[1729884159396,0.3608,66841.0,66834.0,0.074966]
[1729884159598,0.3608,66835.0,66834.0,0.074966]
[1729884159800,0.3608,66835.0,66834.0,0.924966]
[1729884159999,0.435765,66835.0,66834.0,0.924966]
[1729884160401,0.20479366,66843.0,66834.0,0.85]
[1729884160402,0.074961,66839.0,66834.0,0.85]
[1729884160600,0.074961,66839.0,66838.0,0.074962]
[1729884161003,0.3608,66841.0,66840.0,0.063]
[1729884161195,0.435758,66841.0,66840.0,0.063]
[1729884161696,0.435758,66841.0,66835.0,0.1116]
[1729884161697,0.074951,66848.0,66841.0,0.074958]
[1729884161898,0.074955,66845.0,66841.0,0.074958]
[1729884162200,0.55751724,66849.0,66841.0,0.074958]
[1729884162405,0.074957,66842.0,66841.0,0.074958]
[1729884162803,0.55763723,66849.0,66835.0,0.1116]
[1729884162998,0.3608,66849.0,66836.0,0.19463723]
[1729884163310,0.3608,66841.0,66835.0,0.12198371]
[1729884163500,0.074964,66839.0,66838.0,0.074946]
[1729884163695,0.07494,66844.0,66843.0,0.074938]
[1729884163905,0.07494,66844.0,66835.0,0.31662094]
[1729884163906,0.3608,66849.0,66840.0,0.3608]
[1729884164108,0.3608,66849.0,66848.0,0.074935]
[1729884164409,0.37319841,66857.0,66849.0,0.074932]
[1729884164410,0.074928,66854.0,66849.0,0.074932]
[1729884165008,0.074928,66854.0,66850.0,0.85]
[1729884165505,0.0022,66857.0,66851.0,0.19463723]
[1729884165706,0.074924,66859.0,66854.0,0.074928]
[1729884166014,0.3608,66863.0,66851.0,0.19463723]
[1729884166202,0.3608,66863.0,66855.0,0.074927]
[1729884166203,0.435719,66863.0,66855.0,0.074927]
[1729884166505,0.435719,66863.0,66856.0,0.074925]
[1729884166711,0.435719,66863.0,66857.0,0.074925]
[1729884166910,0.074922,66860.0,66851.0,0.19463723]
[1729884167203,0.074922,66860.0,66853.0,0.074929]
[1729884167405,0.074922,66860.0,66854.0,0.194628]
[1729884167804,0.3608,66863.0,66854.0,0.194628]
[1729884168009,0.3608,66863.0,66850.0,0.8604006]
[1729884168505,0.074932,66851.0,66850.0,0.8604006]
[1729884169008,0.3608,66863.0,66850.0,0.8604006]
[1729884169403,0.074928,66855.0,66850.0,0.8604006]
[1729884170505,0.074931,66851.0,66850.0,0.8604006]
[1729884171405,0.55543723,66855.0,66841.0,0.1197]
[1729884171604,0.074939,66846.0,66841.0,0.1197]
[1729884171911,0.074939,66846.0,66842.0,0.074942]
[1729884172113,0.074939,66846.0,66844.0,0.07494]
[1729884173205,0.074933,66851.0,66850.0,0.074933]
[1729884173404,0.3608,66871.0,66850.0,0.55543723]
[1729884173704,0.3608,66880.0,66870.0,0.19463723]
[1729884173901,0.074901,66879.0,66875.0,0.074906]
[1729884174101,0.074902,66878.0,66877.0,0.19463723]
[1729884174311,0.074902,66878.0,66877.0,0.55543723]
[1729884174606,0.074898,66882.0,66878.0,0.074902]
[1729884175508,0.2297,66888.0,66878.0,0.074902]
[1729884175702,0.0749,66881.0,66878.0,0.074902]
[1729884175901,0.24004598,66888.0,66885.0,0.074895]
[1729884175902,0.08523798,66888.0,66885.0,0.074895]
[1729884176105,0.074892,66888.0,66885.0,0.435695]
[1729884176305,0.074892,66888.0,66886.0,0.074893]
[1729884176507,0.1224,66899.0,66886.0,0.074893]
[1729884176708,0.074892,66887.0,66886.0,0.074893]
[1729884177816,0.074886,66893.0,66889.0,0.06293]
[1729884178013,0.074887,66892.0,66889.0,0.06293]
[1729884178213,0.074891,66888.0,66885.0,0.3608]
[1729884178415,0.074891,66888.0,66886.0,0.074893]
[1729884178814,0.074891,66888.0,66885.0,0.3608]
[1729884179003,0.074891,66888.0,66887.0,0.074892]
[1729884179409,0.074887,66892.0,66888.0,0.074891]
[1729884179612,0.074888,66891.0,66888.0,0.074891]
[1729884180310,0.37307956,66900.0,66885.0,0.37116539]
[1729884180609,0.074893,66886.0,66885.0,0.37116539]
[1729884181923,0.074893,66886.0,66885.0,0.01036539]
[1729884182106,0.074898,66883.0,66881.0,0.074898]
[1729884182313,0.074898,66882.0,66878.0,0.074902]
[1729884182510,0.0749,66880.0,66877.0,0.435703]
[1729884182710,0.19463723,66893.0,66877.0,0.3608]
[1729884182711,0.074902,66878.0,66877.0,0.3608]
[1729884183519,0.074899,66881.0,66878.0,0.074902]
[1729884183717,0.3608,66894.0,66877.0,0.56556113]
[1729884183919,0.3608,66894.0,66888.0,0.3608]
[1729884184121,0.07489,66889.0,66888.0,0.3608]
[1729884184325,0.074899,66881.0,66879.0,0.074901]
[1729884184515,0.074901,66879.0,66878.0,0.3608]
[1729884184819,0.074901,66879.0,66878.0,0.63034023]
[1729884185315,0.37126829,66894.0,66878.0,0.55543723]
[1729884185514,0.074897,66884.0,66878.0,0.55543723]
[1729884185716,0.074897,66884.0,66883.0,0.19463723]
[1729884186317,0.3733483,66894.0,66878.0,0.55543723]
[1729884186520,0.074901,66879.0,66877.0,0.0101239]
[1729884186715,0.3608,66881.0,66874.0,0.074908]
[1729884187023,0.3608,66881.0,66871.0,0.3608]
[1729884187024,0.1133,66881.0,66877.0,0.3608]
[1729884187323,0.074902,66880.0,66878.0,0.074904]
[1729884188724,0.01046829,66894.0,66877.0,0.3608]
[1729884188916,0.074893,66889.0,66885.0,0.26953323]
[1729884189116,0.19463723,66900.0,66885.0,0.074896]
[1729884189414,0.074895,66887.0,66885.0,0.074896]
[1729884189809,0.074895,66887.0,66879.0,0.55543723]
[1729884189810,0.19463723,66894.0,66882.0,0.074899]
[1729884190010,0.15818852,66893.0,66882.0,0.074899]
[1729884190225,0.1135,66893.0,66879.0,0.5274]
[1729884190420,0.1135,66893.0,66880.0,0.074902]
[1729884190611,0.074898,66883.0,66880.0,0.074902]
[1729884190813,0.074898,66883.0,66881.0,0.0749]
[1729884191820,0.074899,66882.0,66881.0,0.0749]
[1729884192016,0.074899,66882.0,66879.0,0.55543723]
[1729884192916,0.074899,66882.0,66880.0,0.074901]
[1729884193224,0.074899,66882.0,66881.0,0.074901]
[1729884194118,0.074895,66886.0,66882.0,0.074899]
[1729884194514,0.188387,66893.0,66882.0,0.074899]
[1729884195226,0.074902,66880.0,66879.0,0.3608]
[1729884196628,0.074902,66880.0,66871.0,0.85]
[1729884196629,0.07491,66872.0,66871.0,0.85]
[1729884196920,0.19463723,66874.0,66867.0,0.074915]
[1729884197114,0.074917,66866.0,66865.0,0.435718]
[1729884197320,0.1245,66873.0,66866.0,0.074917]
[1729884197723,0.074917,66866.0,66865.0,1.2211966]
[1729884199621,0.074917,66866.0,66865.0,0.8603966]
[1729884199825,0.074917,66866.0,66865.0,0.3608]
[1729884202629,0.074924,66860.0,66859.0,0.074925]
[1729884202935,0.3608,66860.0,66856.0,0.00224292]
[1729884203128,0.074927,66857.0,66856.0,0.00224292]
[1729884204418,0.074932,66850.0,66849.0,0.85]
[1729884204824,0.074932,66850.0,66849.0,0.86056041]
[1729884206023,0.3608,66860.0,66849.0,1.05519764]
[1729884206224,0.074923,66859.0,66856.0,0.074925]
[1729884206924,0.3608,66875.0,66858.0,0.3608]
[1729884207125,0.3608,66875.0,66849.0,0.86056041]
[1729884207126,0.19463723,66865.0,66854.0,0.074928]
[1729884207320,0.074912,66869.0,66851.0,0.04480658]
[1729884207321,0.19463723,66859.0,66851.0,0.04480658]
[1729884207520,0.074926,66856.0,66854.0,0.074927]
[1729884208032,0.37136041,66866.0,66849.0,1.10000422]
[1729884208333,0.07492,66861.0,66850.0,0.074932]
[1729884208631,0.37136041,66866.0,66854.0,0.3608]
[1729884208632,0.074921,66860.0,66854.0,0.3608]
[1729884208827,0.074921,66860.0,66857.0,0.074924]
[1729884209026,0.074917,66864.0,66854.0,0.3608]
[1729884209338,0.074918,66863.0,66854.0,0.55543723]
[1729884209527,0.37344042,66866.0,66858.0,0.074923]
[1729884209721,0.37344042,66866.0,66854.0,0.55543723]
[1729884209722,0.074919,66863.0,66854.0,0.55543723]
[1729884209922,0.07492,66861.0,66860.0,0.074921]
[1729884210129,0.074924,66858.0,66854.0,0.3608]
[1729884210432,0.074919,66862.0,66859.0,0.074922]
[1729884210838,0.074919,66862.0,66860.0,0.074921]
[1729884211224,0.07492,66861.0,66860.0,0.074921]
[1729884212527,0.074926,66856.0,66855.0,0.074926]
[1729884212834,0.074928,66855.0,66853.0,0.074929]
[1729884213144,0.074922,66859.0,66853.0,0.074929]
[1729884213329,0.3608,66860.0,66853.0,0.074929]
[1729884213736,0.19463723,66856.0,66850.0,0.85]
[1729884213929,0.074937,66846.0,66841.0,0.3608]
[1729884214239,0.074932,66851.0,66846.0,0.074937]
[1729884214430,0.074932,66851.0,66845.0,0.074937]
[1729884214631,0.074932,66851.0,66846.0,0.074936]
[1729884214836,0.074937,66846.0,66842.0,0.074941]
[1729884215034,0.074937,66846.0,66844.0,0.074938]
[1729884215427,0.3608,66853.0,66841.0,0.37106437]
[1729884215635,0.3608,66853.0,66843.0,0.19463723]
[1729884216041,0.074927,66855.0,66851.0,0.19463723]
[1729884216233,0.074927,66855.0,66854.0,0.074928]
[1729884216433,0.074923,66859.0,66851.0,0.19463723]
[1729884216641,0.3608,66867.0,66851.0,0.19463723]
[1729884216945,0.074923,66859.0,66856.0,0.074926]
[1729884217133,0.074927,66855.0,66852.0,0.92493]
[1729884217332,0.074922,66860.0,66856.0,0.074925]
[1729884217536,0.074922,66860.0,66857.0,0.074925]
[1729884217738,0.074923,66859.0,66857.0,0.074925]
[1729884218135,0.074918,66863.0,66858.0,0.3608]
[1729884218345,0.074917,66864.0,66860.0,0.07492]
[1729884218635,0.074917,66864.0,66858.0,0.3608]
[1729884218836,0.3608,66867.0,66861.0,0.07492]
[1729884219037,0.074919,66862.0,66861.0,0.07492]
[1729884219231,0.074917,66864.0,66861.0,0.07492]
[1729884220440,0.074917,66864.0,66858.0,0.3608]
[1729884220637,0.074921,66861.0,66858.0,0.3608]
[1729884220837,0.074921,66861.0,66854.0,0.1189]
[1729884220838,0.074925,66857.0,66853.0,0.074929]